bitfinex/quotes_BTCUSD_20260308
["timestamp","ask_amount","ask_price","bid_price","bid_amount"]
[1773010384815,0.00156,66193.0,66174.0,0.3235928]
[1773010385013,0.3314219,66193.0,66174.0,0.3235928]
[1773010385216,0.3314219,66193.0,66175.0,0.00156]
[1773010386034,0.07553782,66192.0,66176.0,0.07555609]
[1773010387114,0.07567582,66192.0,66176.0,0.07555609]
[1773010387319,0.07567582,66192.0,66176.0,0.40097796]
[1773010387515,0.07567582,66192.0,66176.0,0.07555609]
[1773010388317,0.07567582,66192.0,66177.0,0.32542187]
[1773010388520,0.07567582,66192.0,66178.0,0.03684671]
[1773010388724,0.07567582,66192.0,66180.0,0.03874427]
[1773010388973,0.07567582,66192.0,66181.0,0.32542187]
[1773010389380,0.07567582,66192.0,66180.0,0.03874427]
[1773010389584,0.07567582,66192.0,66176.0,0.07711609]
[1773010389794,0.00156,66191.0,66176.0,0.11586036]
[1773010389997,0.00156,66191.0,66177.0,0.36416614]
[1773010390207,0.07723711,66191.0,66180.0,0.32542187]
[1773010390408,0.07723711,66191.0,66181.0,0.36416614]
[1773010390623,0.00156,66190.0,66181.0,0.36416614]
[1773010391190,0.001698,66190.0,66181.0,0.36416614]
[1773010391459,0.000138,66190.0,66181.0,0.36416614]
[1773010391745,0.07552999,66199.0,66186.0,0.32542187]
[1773010391957,0.07622896,66200.0,66189.0,0.03874427]
[1773010392170,0.07552527,66204.0,66189.0,0.03874427]
[1773010392171,0.00156,66208.0,66192.0,0.07553782]
[1773010392382,0.07708014,66208.0,66195.0,0.32542187]
[1773010392961,0.07747655,66208.0,66196.0,0.03874427]
[1773010393170,0.00156,66214.0,66199.0,0.32542187]
[1773010393360,0.00156,66214.0,66201.0,0.36416614]
[1773010393361,0.00011884,66214.0,66201.0,0.36416614]
[1773010393530,0.00011884,66214.0,66193.0,0.32542187]
[1773010393734,0.00011884,66214.0,66195.0,0.32542187]
[1773010393928,0.00011884,66214.0,66196.0,0.04030427]
[1773010394155,0.00011884,66214.0,66199.0,0.40095171]
[1773010394969,0.00022001,66203.0,66200.0,0.03874427]
[1773010395194,0.00022001,66203.0,66200.0,0.36416614]
[1773010395396,0.00022001,66203.0,66201.0,0.36416614]
[1773010395607,0.00022001,66210.0,66201.0,0.36416614]
[1773010396505,0.00022001,66210.0,66202.0,0.07552641]
[1773010396910,0.07573779,66210.0,66177.0,0.0755545]
[1773010397110,0.33567,66209.0,66181.0,0.03874427]
[1773010397353,0.11372343,66210.0,66185.0,0.03874427]
[1773010397559,0.11372343,66210.0,66186.0,0.32698187]
[1773010397560,0.33567,66207.0,66186.0,0.32698187]
[1773010397734,0.33567,66207.0,66187.0,0.36572614]
[1773010397914,0.33567,66207.0,66188.0,0.00156]
[1773010398120,0.33567,66207.0,66189.0,0.03874427]
[1773010398508,0.07552185,66206.0,66190.0,0.07554011]
[1773010398856,0.07552185,66206.0,66191.0,0.36416614]
[1773010399079,0.07552185,66206.0,66192.0,0.03874427]
[1773010399212,0.07552185,66206.0,66192.0,0.36416614]
[1773010399651,0.07552185,66206.0,66192.0,0.03874427]
[1773010400547,0.07552185,66207.0,66193.0,0.07553668]
[1773010400821,0.07573769,66210.0,66197.0,0.03874427]
[1773010400985,0.07729769,66210.0,66194.0,0.00156]
[1773010401191,0.07729769,66210.0,66196.0,0.03874427]
[1773010401498,0.07729769,66210.0,66199.0,0.36416614]
[1773010401872,0.00022001,66207.0,66199.0,0.36416614]
[1773010402076,0.07729769,66210.0,66199.0,0.32542187]
[1773010402294,0.07729769,66210.0,66200.0,0.03874427]
[1773010402476,0.07729829,66210.0,66201.0,0.36416614]
[1773010402674,0.07729829,66210.0,66202.0,0.07552641]
[1773010403422,0.07729829,66210.0,66201.0,0.07552752]
[1773010403950,0.07729829,66210.0,66195.0,0.0755343]
[1773010404134,0.07729829,66210.0,66195.0,0.0770943]
[1773010404281,0.44842894,66210.0,66195.0,0.0755343]
[1773010404896,0.03532441,66209.0,66191.0,0.07553894]
[1773010405108,0.33567,66206.0,66189.0,0.07574118]
[1773010405438,0.07573829,66210.0,66190.0,0.03874427]
[1773010405586,0.07573829,66210.0,66193.0,0.32542187]
[1773010405902,0.07573829,66210.0,66191.0,0.00156]
[1773010405903,0.00022001,66210.0,66198.0,0.03874427]
[1773010406101,0.07573795,66210.0,66198.0,0.03874427]
[1773010406315,0.33567,66209.0,66189.0,0.43990732]
[1773010406515,0.33567,66206.0,66189.0,0.07574054]
[1773010406745,0.03661319,66205.0,66189.0,0.07574054]
[1773010407300,0.07552413,66204.0,66189.0,0.32562187]
[1773010407520,0.07552413,66204.0,66189.0,0.36436614]
[1773010408139,0.00156,66203.0,66189.0,0.36436614]
[1773010409359,0.07552641,66202.0,66190.0,0.43970625]
[1773010409642,0.07552641,66202.0,66191.0,0.36416614]
[1773010411253,0.07552641,66202.0,66192.0,0.07553782]
[1773010412240,0.07708636,66203.0,66193.0,0.32542187]
[1773010412938,0.07552636,66203.0,66193.0,0.32542187]
[1773010413147,0.00156,66202.0,66193.0,0.32542187]
[1773010413659,0.00156,66202.0,66194.0,0.07553554]
[1773010413890,0.00156,66202.0,66194.0,0.07537601]
[1773010414284,0.26424066,66207.0,66194.0,0.07537601]
[1773010414485,0.15190875,66206.0,66197.0,0.34300887]
[1773010414647,0.00156,66206.0,66197.0,0.34300887]
[1773010415055,0.00156,66205.0,66197.0,0.34300887]
[1773010415456,0.15073175,66210.0,66195.0,0.03874427]
[1773010415797,0.07581261,66214.0,66201.0,0.38175314]
[1773010416995,0.03815091,66213.0,66201.0,0.38175314]
[1773010417848,0.07551501,66212.0,66202.0,0.07552641]
[1773010418071,0.07551501,66212.0,66201.0,0.0755265]
[1773010418072,0.03815091,66211.0,66201.0,0.0755275]
[1773010418719,0.03815091,66211.0,66198.0,0.07553005]
[1773010420120,0.07551729,66210.0,66198.0,0.07553005]
[1773010420333,0.00156,66209.0,66199.0,0.37856828]
[1773010420574,0.00156,66208.0,66199.0,0.37856828]
[1773010421002,0.03458245,66207.0,66193.0,0.00156]
[1773010421235,0.35690172,66206.0,66190.0,0.07553974]
[1773010421433,0.03458245,66203.0,66190.0,0.07553974]
[1773010421584,0.00156,66202.0,66190.0,0.07553974]
[1773010421789,0.03458245,66201.0,66190.0,0.07553974]
[1773010422177,0.0755287,66200.0,66190.0,0.07553974]
[1773010424595,0.07573438,66213.0,66192.0,0.03555941]
[1773010424871,0.07729438,66213.0,66196.0,0.03555941]
[1773010425089,0.07729438,66213.0,66199.0,0.34300887]
[1773010425288,0.07729438,66213.0,66200.0,0.34300887]
[1773010425516,0.07729438,66213.0,66201.0,0.03555941]
[1773010426378,0.07729438,66213.0,66202.0,0.07552641]
[1773010427629,0.07729438,66213.0,66195.0,0.07553389]
[1773010427630,0.32231927,66211.0,66195.0,0.07553389]
[1773010427828,0.03458245,66210.0,66195.0,0.07553389]
[1773010428051,0.32231927,66207.0,66189.0,0.07574072]
[1773010428266,0.03458245,66208.0,66192.0,0.34300887]
[1773010428267,0.15079358,66206.0,66192.0,0.34300887]
[1773010428471,0.15079358,66206.0,66191.0,0.07553897]
[1773010428472,0.07552201,66206.0,66195.0,0.03555941]
[1773010428778,0.00156,66205.0,66197.0,0.34300887]
[1773010428943,0.00156,66205.0,66198.0,0.03555941]
[1773010429325,0.00156,66205.0,66202.0,0.03555941]
[1773010430699,0.00156,66205.0,66202.0,0.11108525]
[1773010430912,0.00156,66210.0,66204.0,0.03555941]
[1773010432707,0.0755171,66211.0,66207.0,0.03555941]
[1773010433912,0.0765171,66211.0,66203.0,0.07552451]
[1773010434310,0.0765171,66211.0,66203.0,0.11108392]
[1773010434512,0.0780371,66211.0,66203.0,0.11108392]
[1773010435149,0.0770371,66211.0,66203.0,0.11108392]
[1773010435352,0.0770371,66211.0,66204.0,0.03555941]
[1773010436084,0.0770371,66211.0,66204.0,0.1110427]
[1773010436282,0.07725678,66211.0,66204.0,0.07552329]
[1773010436560,0.07725678,66211.0,66204.0,0.1110827]
[1773010437227,0.00152,66212.0,66194.0,0.0002]
[1773010437434,0.00152,66212.0,66195.0,0.0770538]
[1773010437435,0.03610245,66212.0,66195.0,0.0770538]
[1773010437634,0.03610245,66212.0,66197.0,0.03555941]
[1773010437834,0.03610245,66212.0,66199.0,0.03555941]
[1773010438397,0.07551615,66211.0,66201.0,0.03555941]
[1773010440731,0.00152,66210.0,66203.0,0.03555941]
[1773010441150,0.00152,66211.0,66203.0,0.03555941]
[1773010441349,0.00152,66211.0,66202.0,0.07552641]
[1773010441350,0.00152,66211.0,66206.0,0.34300887]
[1773010441589,0.07551615,66213.0,66209.0,0.03555941]
[1773010441809,0.00152,66211.0,66209.0,0.03555941]
[1773010442569,0.07703307,66214.0,66209.0,0.03555941]
[1773010443009,0.001,66211.0,66209.0,0.03555941]
[1773010443612,0.00152,66217.0,66210.0,0.33671693]
[1773010443820,0.00152,66217.0,66211.0,0.03555941]
[1773010444036,0.07550487,66221.0,66211.0,0.03555941]
[1773010444222,0.00152,66219.0,66212.0,0.03555941]
[1773010444634,0.07550487,66221.0,66212.0,0.03555941]
[1773010444838,0.07702647,66220.0,66213.0,0.07551387]
[1773010445164,0.07550647,66220.0,66213.0,0.07551387]
[1773010445336,0.00152,66219.0,66213.0,0.07551387]
[1773010445798,0.00022001,66218.0,66207.0,0.07552071]
[1773010446003,0.00022001,66218.0,66207.0,0.00011884]
[1773010446004,0.03458245,66217.0,66207.0,0.00011884]
[1773010446208,0.03458245,66216.0,66204.0,0.07552381]
[1773010446424,0.03464788,66215.0,66203.0,0.07552315]
[1773010446635,0.03464788,66213.0,66200.0,0.07552782]
[1773010446845,0.07551843,66209.0,66198.0,0.0002]
[1773010447097,0.03464788,66208.0,66198.0,0.0002]
[1773010447668,0.03464788,66206.0,66194.0,0.0002]
[1773010447892,0.07551843,66209.0,66194.0,0.0757351]
[1773010447893,0.00152,66205.0,66194.0,0.0757351]
[1773010448099,0.03616788,66205.0,66194.0,0.0757351]
[1773010448318,0.18117306,66221.0,66194.0,0.0757351]
[1773010448552,0.45734199,66240.0,66194.0,0.0757351]
[1773010448553,0.00539,66222.0,66198.0,0.03448049]
[1773010448723,0.08089423,66222.0,66201.0,0.33013607]
[1773010448883,0.08089423,66222.0,66204.0,0.03691096]
[1773010448884,0.08089417,66222.0,66204.0,0.03691096]
[1773010449082,0.08089417,66222.0,66207.0,0.33013607]
[1773010449388,0.08089417,66222.0,66210.0,0.33013607]
[1773010449586,0.08089417,66222.0,66211.0,0.03691096]
[1773010449788,0.00152,66221.0,66211.0,0.03691096]
[1773010450192,0.08089417,66222.0,66211.0,0.03691096]
[1773010450410,0.00152,66221.0,66211.0,0.03691096]
[1773010450667,0.00352,66221.0,66211.0,0.03691096]
[1773010450883,0.07550516,66221.0,66212.0,0.07551501]
[1773010451031,0.07550516,66221.0,66212.0,0.11242597]
[1773010451206,0.00152,66220.0,66212.0,0.11242597]
[1773010451614,0.00152,66219.0,66212.0,0.11242597]
[1773010451852,0.00152,66219.0,66212.0,0.07551501]
[1773010452064,0.07550516,66221.0,66212.0,0.07551501]
[1773010452280,0.00152,66218.0,66212.0,0.07551501]
[1773010452505,0.00152,66218.0,66211.0,0.07551501]
[1773010454098,0.00152,66218.0,66210.0,0.07551681]
[1773010454584,0.07702828,66218.0,66210.0,0.07551681]
[1773010455625,0.07702828,66218.0,66198.0,0.0002]
[1773010455626,0.03441697,66215.0,66199.0,0.07552984]
[1773010455804,0.03441697,66214.0,66199.0,0.07552984]
[1773010456152,0.07551387,66213.0,66198.0,0.1126408]
[1773010456351,0.03593697,66212.0,66198.0,0.1126408]
[1773010457200,0.33979767,66211.0,66198.0,0.0002]
[1773010457359,0.03479447,66209.0,66198.0,0.0002]
[1773010457699,0.00152,66212.0,66198.0,0.0002]
[1773010457917,0.03619174,66212.0,66198.0,0.0002]
[1773010459211,0.07551615,66211.0,66198.0,0.03711096]
[1773010459407,0.07551615,66211.0,66200.0,0.33013607]
[1773010459605,0.07551615,66211.0,66201.0,0.03691096]
[1773010460084,0.03442721,66210.0,66198.0,0.0002]
[1773010460498,0.37422488,66210.0,66198.0,0.0002]
[1773010460825,0.0343054,66209.0,66198.0,0.0002]
[1773010461229,0.0343054,66207.0,66198.0,0.0002]
[1773010461429,0.07551957,66208.0,66198.0,0.0002]
[1773010461430,0.0358254,66206.0,66198.0,0.0002]
[1773010461807,0.0341839,66204.0,66194.0,0.00059641]
[1773010462605,0.0341839,66204.0,66191.0,0.0002]
[1773010462805,0.0341839,66204.0,66186.0,0.07554371]
[1773010462806,0.0340627,66202.0,66186.0,0.07554359]
[1773010463017,0.00152,66201.0,66189.0,0.03691096]
[1773010463237,0.00152,66201.0,66192.0,0.07553782]
[1773010463518,0.00152,66201.0,66193.0,0.03691096]
[1773010463686,0.07552818,66201.0,66193.0,0.03691096]
[1773010463904,0.00152,66200.0,66193.0,0.03691096]
[1773010464644,0.00152,66200.0,66192.0,0.07553782]
[1773010465602,0.07552984,66199.0,66188.0,0.07554224]
[1773010465921,0.03405595,66198.0,66188.0,0.07554224]
[1773010466337,0.07552984,66199.0,66188.0,0.07554224]
[1773010466541,0.07552984,66199.0,66190.0,0.33013607]
[1773010466751,0.07552984,66199.0,66191.0,0.33013607]
[1773010466924,0.07552984,66199.0,66192.0,0.03691096]
[1773010468467,0.07552984,66199.0,66193.0,0.07553668]
[1773010468687,0.07704966,66200.0,66193.0,0.07549668]
[1773010468848,0.07704966,66200.0,66193.0,0.11240764]
[1773010469571,0.07704966,66200.0,66193.0,0.03691096]
[1773010471667,0.00152,66199.0,66193.0,0.11244717]
[1773010472524,0.05181012,66202.0,66193.0,0.11244717]
[1773010472525,0.07552527,66203.0,66193.0,0.11244717]
[1773010472731,0.00152,66202.0,66193.0,0.11244717]
[1773010474087,0.00152,66202.0,66194.0,0.03691096]
[1773010475101,0.07552594,66203.0,66194.0,0.03691096]
[1773010475339,0.00152,66201.0,66194.0,0.03691096]
[1773010475634,0.07552594,66203.0,66194.0,0.03691096]
[1773010475834,0.00152,66200.0,66194.0,0.03691096]
[1773010476055,0.07572914,66218.0,66195.0,0.41995289]
[1773010476200,0.07702977,66217.0,66198.0,0.03691096]
[1773010476399,0.07702977,66217.0,66201.0,0.34441849]
[1773010476618,0.07702977,66217.0,66204.0,0.03691096]
[1773010476791,0.07550977,66217.0,66204.0,0.03691096]
[1773010476992,0.00152,66216.0,66204.0,0.03691096]
[1773010477239,0.00152,66216.0,66199.0,0.00152]
[1773010477240,0.00152,66216.0,66205.0,0.34441849]
[1773010477445,0.00152,66216.0,66207.0,0.03691096]
[1773010478418,0.07551159,66215.0,66207.0,0.03691096]
[1773010478617,0.07551159,66215.0,66207.0,0.11243134]
[1773010480649,0.07551159,66215.0,66204.0,0.11062153]
[1773010481013,0.07651159,66215.0,66204.0,0.07552413]
[1773010481167,0.07651159,66215.0,66205.0,0.0350974]
[1773010481568,0.07551159,66215.0,66205.0,0.0350974]
[1773010482155,0.07551159,66215.0,66205.0,0.34441849]
[1773010482360,0.07551159,66215.0,66206.0,0.0350974]
[1773010482559,0.07551159,66215.0,66207.0,0.0350974]
[1773010482983,0.07551159,66215.0,66207.0,0.11061784]
[1773010483187,0.00022001,66218.0,66208.0,0.34441849]
[1773010483441,0.00152,66219.0,66209.0,0.34441849]
[1773010483644,0.00152,66219.0,66210.0,0.0350974]
[1773010484166,0.08111375,66222.0,66210.0,0.0350974]
[1773010484167,0.00152,66218.0,66210.0,0.0350974]
[1773010485004,0.00152,66218.0,66212.0,0.0350974]
[1773010486754,0.00152,66219.0,66213.0,0.0350974]
[1773010486933,0.00152,66219.0,66215.0,0.0350974]
[1773010487516,0.00152,66220.0,66215.0,0.0350974]
[1773010487716,0.00552876,66222.0,66215.0,0.0350974]
[1773010487925,0.00152,66220.0,66215.0,0.0350974]
[1773010488714,0.00152,66221.0,66215.0,0.34441849]
[1773010488911,0.00152,66221.0,66218.0,0.07550799]
[1773010489086,0.00152,66221.0,66219.0,0.0350974]
[1773010489292,0.0757733,66232.0,66221.0,0.0350974]
[1773010489531,0.00152,66231.0,66223.0,0.0350974]
[1773010489776,0.07577329,66232.0,66223.0,0.0350974]
[1773010489777,0.00152,66230.0,66223.0,0.0350974]
[1773010490516,0.00022001,66229.0,66223.0,0.0350974]
[1773010491137,0.00022001,66229.0,66224.0,0.07550132]
[1773010491305,0.00022001,66229.0,66225.0,0.0350974]
[1773010491857,0.00152,66231.0,66225.0,0.0350974]
[1773010492282,0.00152,66231.0,66224.0,0.07550132]
[1773010493286,0.00152,66231.0,66221.0,0.0350974]
[1773010493492,0.03377437,66229.0,66218.0,0.07550816]
[1773010494308,0.07549448,66230.0,66219.0,0.0350974]
[1773010494915,0.00152,66229.0,66219.0,0.0350974]
[1773010495433,0.07701564,66229.0,66221.0,0.0350974]
[1773010495657,0.00152,66228.0,66221.0,0.0350974]
[1773010496001,0.00152,66227.0,66224.0,0.00023]
[1773010496203,0.00011876,66227.0,66224.0,0.00023]
[1773010497364,0.00111876,66227.0,66224.0,0.00023]
[1773010497571,0.07549904,66226.0,66220.0,0.07550588]
[1773010497772,0.07549904,66226.0,66219.0,0.07550588]
[1773010498426,0.0766172,66227.0,66219.0,0.07550588]
[1773010498652,0.00111876,66227.0,66220.0,0.34441849]
[1773010498979,0.07661684,66227.0,66221.0,0.0359626]
[1773010499101,0.07561669,66227.0,66221.0,0.0359626]
[1773010499504,0.07661669,66227.0,66221.0,0.0359626]
[1773010500171,0.07561669,66227.0,66221.0,0.11146713]
[1773010500382,0.07661669,66227.0,66221.0,0.07550453]
[1773010500789,0.07561669,66227.0,66220.0,0.07550584]
[1773010501003,0.07661669,66227.0,66220.0,0.07550584]
[1773010501229,0.07661669,66227.0,66215.0,0.07551052]
[1773010501448,0.00022001,66231.0,66219.0,0.0359626]
[1773010501670,0.00022001,66238.0,66221.0,0.34441849]
[1773010501880,0.00152,66236.0,66224.0,0.0359626]
[1773010502082,0.07700775,66236.0,66224.0,0.07550132]
[1773010502407,0.001,66227.0,66225.0,0.0359626]
[1773010502608,0.07700775,66236.0,66227.0,0.0359626]
[1773010504019,0.07800775,66236.0,66227.0,0.0359626]
[1773010504428,0.07800775,66236.0,66228.0,0.07549676]
[1773010504657,0.00022001,66229.0,66228.0,0.07549676]
[1773010505541,0.07570771,66236.0,66228.0,0.11145936]
[1773010505856,0.00022001,66238.0,66228.0,0.07549676]
[1773010506057,0.00152,66247.0,66232.0,0.0359626]
[1773010506378,0.0769953,66247.0,66238.0,0.07548537]
[1773010506579,0.0769953,66247.0,66240.0,0.03731174]
[1773010507888,0.07711403,66247.0,66240.0,0.03731174]
[1773010508659,0.07711403,66247.0,66169.0,0.59952547]
[1773010508660,0.00421584,66244.0,66225.0,0.07701676]
[1773010508987,0.07711403,66247.0,66225.0,0.07701676]
[1773010508988,0.07711403,66247.0,66228.0,0.32223638]
[1773010509163,0.00152,66246.0,66231.0,0.03587879]
[1773010509340,0.00152,66246.0,66233.0,0.03587879]
[1773010509543,0.00152,66246.0,66234.0,0.35811517]
[1773010509724,0.07559403,66247.0,66234.0,0.35811517]
[1773010509924,0.00152,66246.0,66234.0,0.35811517]
[1773010510327,0.07547853,66244.0,66235.0,0.07548878]
[1773010510830,0.00152,66243.0,66237.0,0.03587879]
[1773010511043,0.00152,66243.0,66234.0,0.07548878]
[1773010511246,0.00398637,66243.0,66232.0,0.07549129]
[1773010511472,0.00550637,66242.0,66232.0,0.07549129]
[1773010512467,0.07548195,66241.0,66229.0,0.07549467]
[1773010514173,0.07548195,66241.0,66229.0,0.11137346]
[1773010516496,0.003416,66240.0,66228.0,0.07549562]
[1773010517015,0.07548195,66241.0,66230.0,0.32223638]
[1773010517270,0.07548195,66241.0,66230.0,0.35811517]
[1773010519153,0.07548195,66241.0,66231.0,0.07549334]
[1773010519674,0.07548195,66241.0,66231.0,0.43360851]
[1773010520577,0.07548195,66241.0,66231.0,0.39772972]
[1773010520876,0.07548195,66241.0,66232.0,0.35811517]
[1773010521593,0.03431151,66240.0,66229.0,0.07549334]
[1773010521799,0.07548195,66241.0,66219.0,0.07702692]
[1773010521800,0.03431151,66238.0,66219.0,0.07702692]
[1773010522013,0.33921695,66236.0,66220.0,0.0757056]
[1773010522145,0.03583151,66235.0,66220.0,0.0757056]
[1773010522346,0.03583151,66235.0,66220.0,0.0002]
[1773010522531,0.03583151,66235.0,66224.0,0.0002]
[1773010523599,0.03431151,66233.0,66224.0,0.0002]
[1773010524217,0.03431151,66233.0,66217.0,0.07550931]
[1773010524485,0.03431151,66233.0,66194.0,0.0002]
[1773010524486,0.33921695,66223.0,66202.0,0.07552621]
[1773010524719,0.03431151,66219.0,66202.0,0.07552621]
[1773010525025,0.03431151,66217.0,66202.0,0.39776259]
[1773010525325,0.03431151,66217.0,66203.0,0.32223638]
[1773010525532,0.07551045,66216.0,66203.0,0.3977607]
[1773010525680,0.03431151,66215.0,66203.0,0.39788038]
[1773010526076,0.03431151,66215.0,66203.0,0.00011876]
[1773010526339,0.03431151,66215.0,66165.0,0.0002904]
[1773010526555,0.07551045,66216.0,66180.0,1e-08]
[1773010526556,0.33921695,66199.0,66180.0,1e-08]
[1773010526752,0.03431151,66196.0,66180.0,1e-08]
[1773010526903,0.03431151,66193.0,66180.0,1e-08]
[1773010527120,0.03431151,66191.0,66180.0,1e-08]
[1773010527527,0.07553098,66198.0,66181.0,0.32223638]
[1773010527726,0.07553098,66198.0,66180.0,1e-08]
[1773010527727,0.00152,66197.0,66182.0,0.35666251]
[1773010527918,0.03583151,66197.0,66182.0,0.35666251]
[1773010528113,0.03431151,66197.0,66182.0,0.35666251]
[1773010528315,0.03583151,66196.0,66182.0,0.35666251]
[1773010528776,0.03431151,66196.0,66182.0,0.35666251]
[1773010528932,0.00152,66195.0,66182.0,0.35666251]
[1773010529132,0.00152,66194.0,66184.0,0.32223638]
[1773010529350,0.00152,66194.0,66186.0,0.32223638]
[1773010529556,0.07551955,66209.0,66180.0,1e-08]
[1773010529769,0.0002904,66221.0,66180.0,1e-08]
[1773010529770,0.00152,66208.0,66186.0,0.32223638]
[1773010529970,0.00152,66207.0,66190.0,0.32223638]
[1773010530172,0.03583151,66207.0,66189.0,0.00152]
[1773010530374,0.03583151,66207.0,66188.0,0.32223638]
[1773010530574,0.03583151,66207.0,66189.0,0.03442613]
[1773010530748,0.03583151,66207.0,66191.0,0.03442613]
[1773010530954,0.00152,66207.0,66194.0,0.32223638]
[1773010531195,0.00152,66207.0,66196.0,0.32223638]
[1773010531412,0.07551397,66213.0,66199.0,0.03442613]
[1773010531706,0.07551615,66211.0,66204.0,0.32223638]
[1773010531862,0.07551557,66212.0,66206.0,0.32223638]
[1773010532201,0.00152,66211.0,66207.0,0.03442613]
[1773010532500,0.00152,66211.0,66208.0,0.32223638]
[1773010532851,0.00152,66211.0,66208.0,0.32235509]
[1773010533292,0.00152,66211.0,66208.0,0.00011871]
[1773010533517,0.07551397,66213.0,66208.0,0.00011871]
[1773010533732,0.00152,66213.0,66208.0,0.36518815]
[1773010534026,0.0002904,66221.0,66212.0,0.36506944]
[1773010534310,0.0002904,66221.0,66213.0,0.36506944]
[1773010534510,0.00152,66220.0,66213.0,0.36506944]
[1773010535723,0.00152,66220.0,66213.0,0.44058291]
[1773010535921,0.00152,66220.0,66213.0,0.36506944]
[1773010536715,0.00152,66220.0,66211.0,0.07551592]
[1773010536920,0.00152,66220.0,66190.0,0.0755391]
[1773010536921,0.03431151,66218.0,66190.0,0.0755391]
[1773010537116,0.33755499,66215.0,66190.0,0.0755391]
[1773010537327,0.03431151,66212.0,66190.0,0.0755391]
[1773010537534,0.33755499,66209.0,66190.0,0.0755391]
[1773010537746,0.03431151,66206.0,66191.0,0.33064331]
[1773010537966,0.07552071,66207.0,66193.0,0.33064331]
[1773010538404,0.03431151,66206.0,66193.0,0.33064331]
[1773010538627,0.07552071,66207.0,66193.0,0.33064331]
[1773010539420,0.03650514,66206.0,66205.0,0.0002]
[1773010539611,0.03650514,66206.0,66193.0,0.33064331]
[1773010539814,0.07552299,66205.0,66198.0,0.0002]
[1773010540217,0.03650514,66204.0,66198.0,0.0002]
[1773010540446,0.07552299,66205.0,66198.0,0.0002]
[1773010542586,0.07552299,66206.0,66198.0,0.33084331]
[1773010543573,0.07552299,66206.0,66183.0,0.33064331]
[1773010543574,0.03650514,66204.0,66183.0,0.33064331]
[1773010543774,0.03650514,66204.0,66186.0,0.03731807]
[1773010543925,0.03650514,66204.0,66189.0,0.33064331]
[1773010544125,0.00152,66203.0,66192.0,0.03731807]
[1773010544295,0.00152,66203.0,66193.0,0.36796138]
[1773010544697,0.07552641,66202.0,66193.0,0.36796138]
[1773010544963,0.07550931,66217.0,66195.0,0.33064331]
[1773010545165,0.00152,66216.0,66199.0,0.33064331]
[1773010545474,0.00152,66216.0,66202.0,0.36796138]
[1773010545810,0.33755499,66215.0,66193.0,0.07553554]
[1773010546037,0.03650514,66214.0,66197.0,0.03731807]
[1773010546235,0.03650514,66214.0,66199.0,0.36796138]
[1773010546412,0.00152,66213.0,66199.0,0.36796138]
[1773010546614,0.00152,66213.0,66200.0,0.03731807]
[1773010546952,0.07703501,66212.0,66200.0,0.44348968]
[1773010547110,0.07703501,66212.0,66200.0,0.07552815]
[1773010547309,0.00152,66211.0,66201.0,0.33064331]
[1773010547509,0.00152,66211.0,66203.0,0.36796138]
[1773010548339,0.1815304,66237.0,66203.0,0.36796138]
[1773010548536,0.00156,66217.0,66206.0,0.03731807]
[1773010548747,0.07572817,66220.0,66213.0,0.33064331]
[1773010548748,0.07572631,66220.0,66213.0,0.33064331]
[1773010548952,0.00156,66219.0,66215.0,0.36796138]
[1773010549164,0.00156,66219.0,66215.0,0.36808007]
[1773010549706,0.00156,66218.0,66215.0,0.36808007]
[1773010549847,0.00156,66218.0,66215.0,0.03743676]
[1773010550683,0.00156,66218.0,66215.0,0.00011869]
[1773010551372,0.00156,66217.0,66215.0,0.36808007]
[1773010551901,0.00156,66217.0,66215.0,0.00011869]
[1773010552043,0.00156,66218.0,66215.0,0.00011869]
[1773010552654,0.00156,66218.0,66200.0,0.44348791]
[1773010552655,0.03650514,66217.0,66200.0,0.44348791]
[1773010552853,0.03662385,66217.0,66200.0,0.44348791]
[1773010553306,0.03650514,66215.0,66200.0,0.44348791]
[1773010554126,0.03650514,66215.0,66212.0,0.0002]
[1773010554287,0.03650514,66215.0,66200.0,0.44348791]
[1773010554480,0.03650514,66215.0,66201.0,0.36796138]
[1773010554861,0.03650514,66215.0,66205.0,0.0002]
[1773010555305,0.03750514,66215.0,66205.0,0.0002]
[1773010555669,0.07551273,66214.0,66205.0,0.0002]
[1773010558139,0.07651273,66214.0,66205.0,0.0002]
[1773010558326,0.07651273,66214.0,66205.0,0.03751807]
[1773010558529,0.07551273,66215.0,66206.0,0.03731807]
[1773010558674,0.07551273,66214.0,66208.0,0.03731807]
[1773010558873,0.07551273,66214.0,66210.0,0.33064331]
[1773010559112,0.07551273,66214.0,66210.0,0.36796138]
[1773010559693,0.07551273,66214.0,66210.0,0.03731807]
[1773010560231,0.00156,66213.0,66211.0,0.03731807]
[1773010560455,0.07551045,66216.0,66211.0,0.03731807]
[1773010560606,0.00156,66213.0,66211.0,0.03731807]
[1773010561014,0.001,66214.0,66212.0,0.33064331]
[1773010561239,0.00167871,66217.0,66213.0,0.03731807]
[1773010561789,0.07718814,66217.0,66209.0,0.07551615]
[1773010561992,0.001,66213.0,66210.0,0.03731807]
[1773010562134,0.00156,66219.0,66213.0,0.03731807]
[1773010562344,0.00164365,66219.0,66213.0,0.03731807]
[1773010562547,0.00022001,66229.0,66213.0,0.03731807]
[1773010562740,0.00022001,66227.0,66217.0,0.03731807]
[1773010562937,0.00022001,66227.0,66220.0,0.33341334]
[1773010563136,0.00022001,66227.0,66220.0,0.37073141]
[1773010563633,0.00022001,66229.0,66220.0,0.37073141]
[1773010563805,0.0001266,66231.0,66221.0,0.37073141]
[1773010563806,0.07562071,66231.0,66221.0,0.37073141]
[1773010564045,0.07562071,66231.0,66222.0,0.03731807]
[1773010564317,0.07562071,66231.0,66223.0,0.07550246]
[1773010564318,0.07549411,66231.0,66223.0,0.07550246]
[1773010564679,0.03202193,66232.0,66223.0,0.07550246]
[1773010566602,0.07705334,66233.0,66223.0,0.11497278]
[1773010569451,0.00156,66232.0,66223.0,0.07550246]
[1773010570829,0.00024818,66232.0,66223.0,0.07550246]
[1773010571230,0.00024818,66232.0,66222.0,0.07550246]
[1773010571231,0.07549334,66231.0,66222.0,0.07550246]
[1773010571432,0.03677616,66229.0,66211.0,0.07551554]
[1773010571643,0.03677616,66227.0,66215.0,0.07571142]
[1773010571996,0.35678015,66222.0,66208.0,0.07571899]
[1773010572142,0.03833616,66221.0,66208.0,0.07571899]
[1773010572344,0.03833616,66221.0,66208.0,0.0002]
[1773010572552,0.03677616,66219.0,66208.0,0.07571918]
[1773010572978,0.03677616,66219.0,66208.0,0.0002]
[1773010573293,0.03677616,66217.0,66208.0,0.0002]
[1773010573472,0.00156,66216.0,66208.0,0.0002]
[1773010574224,0.03677616,66215.0,66205.0,0.0002]
[1773010574996,0.00156,66216.0,66205.0,0.0002]
[1773010575157,0.00156,66216.0,66205.0,0.03592649]
[1773010575357,0.07551159,66215.0,66205.0,0.111449]
[1773010576511,0.07551159,66215.0,66205.0,0.03592649]
[1773010576689,0.07551159,66215.0,66205.0,0.416346]